bitfinex/quotes_BTCUSD_20241119
["timestamp","ask_amount","ask_price","bid_price","bid_amount"]
[1732034160124,0.108307,92330.0,92329.0,0.0008573]
[1732034160340,0.108302,92334.0,92329.0,0.0008573]
[1732034160561,0.10906255,92336.0,92329.0,0.0008573]
[1732034160780,0.108293,92343.0,92329.0,0.0008573]
[1732034160990,0.108292,92343.0,92337.0,0.108298]
[1732034161198,0.216565,92351.0,92330.0,0.216614]
[1732034161447,0.21734455,92351.0,92330.0,0.108307]
[1732034161899,0.21734455,92351.0,92329.0,0.0008573]
[1732034161900,0.10906255,92351.0,92329.0,0.0008573]
[1732034161903,0.108289,92345.0,92339.0,0.108295]
[1732034162109,0.10906255,92351.0,92329.0,0.0008573]
[1732034162313,0.108287,92347.0,92341.0,0.108293]
[1732034162749,0.108285,92349.0,92329.0,0.0008573]
[1732034162953,0.10906255,92351.0,92329.0,0.0008573]
[1732034163164,0.108287,92347.0,92341.0,0.108293]
[1732034163407,0.108299,92337.0,92332.0,0.108303]
[1732034163616,0.10906255,92346.0,92330.0,0.216614]
[1732034163838,0.10906255,92346.0,92329.0,0.0008573]
[1732034164046,0.108295,92340.0,92335.0,0.108301]
[1732034164284,0.108296,92339.0,92335.0,0.108301]
[1732034164775,0.10906255,92346.0,92329.0,0.0008573]
[1732034164973,0.32564055,92346.0,92329.0,0.0008573]
[1732034165178,0.32564055,92346.0,92331.0,0.108305]
[1732034165410,0.216596,92338.0,92331.0,0.108305]
[1732034165697,0.216604,92334.0,92329.0,0.0008573]
[1732034165906,0.108305,92332.0,92329.0,0.0008573]
[1732034166128,0.108304,92333.0,92329.0,0.0008573]
[1732034166347,0.108302,92334.0,92329.0,0.1091653]
[1732034166577,0.108307,92330.0,92329.0,0.0008573]
[1732034166794,0.216596,92338.0,92329.0,0.0008573]
[1732034166795,0.108304,92333.0,92329.0,0.0008573]
[1732034167017,0.10906255,92337.0,92329.0,0.0008573]
[1732034167236,0.10906255,92337.0,92330.0,0.108306]
[1732034167237,0.108301,92335.0,92330.0,0.108306]
[1732034167486,0.108307,92330.0,92329.0,0.0008573]
[1732034167707,0.29896955,92330.0,92329.0,0.0008573]
[1732034168599,0.32918685,92330.0,92329.0,0.0008573]
[1732034168800,0.42918685,92330.0,92329.0,0.0008573]
[1732034169215,0.39896955,92330.0,92329.0,0.0008573]
[1732034169422,0.44675531,92330.0,92329.0,0.0008573]
[1732034170546,0.39896955,92330.0,92329.0,0.0008573]
[1732034174259,0.29066255,92330.0,92329.0,0.0008573]
[1732034174479,0.39896955,92330.0,92329.0,0.0008573]
[1732034176615,0.29896955,92330.0,92329.0,0.0008573]
[1732034178608,0.39896955,92330.0,92329.0,0.0008573]
[1732034182050,0.39896955,92330.0,92306.0,0.00041689]
[1732034182051,0.108334,92307.0,92306.0,0.00041689]
[1732034182274,0.21739655,92307.0,92306.0,0.00041689]
[1732034183087,0.216651,92315.0,92306.0,0.00041689]
[1732034183314,0.216654,92313.0,92306.0,0.00041689]
[1732034183517,0.108334,92307.0,92306.0,0.00041689]
[1732034183718,0.216658,92311.0,92306.0,0.00041689]
[1732034183875,0.108332,92309.0,92306.0,0.00041689]
[1732034184077,0.10906255,92312.0,92306.0,0.00041689]
[1732034184294,0.108329,92311.0,92306.0,0.00041689]
[1732034184675,0.15215645,92312.0,92306.0,0.00041689]
[1732034184860,0.10833,92311.0,92306.0,0.00041689]
[1732034185098,0.15215645,92312.0,92306.0,0.00041689]
[1732034185482,0.10833,92310.0,92306.0,0.00041689]
[1732034185713,0.0430939,92312.0,92306.0,0.00041689]
[1732034185905,0.0430939,92312.0,92311.0,0.108329]
[1732034186139,0.0816,92331.0,92306.0,0.00041689]
[1732034186140,0.108312,92326.0,92306.0,0.00041689]
[1732034186341,0.10906255,92325.0,92308.0,0.076]
[1732034186545,0.108314,92324.0,92318.0,0.10832]
[1732034186766,0.21737755,92323.0,92318.0,0.10832]
[1732034186978,0.10906255,92323.0,92320.0,0.108318]
[1732034187407,0.108321,92319.0,92313.0,0.108326]
[1732034187621,0.10906255,92323.0,92308.0,0.076]
[1732034188031,0.10906255,92323.0,92320.0,0.108317]
[1732034188254,0.04481748,92328.0,92308.0,0.076]
[1732034188469,0.10906255,92327.0,92316.0,0.216646]
[1732034188699,0.10906255,92327.0,92324.0,0.108313]
[1732034188914,0.10906255,92327.0,92325.0,0.108312]
[1732034189117,0.04530373,92330.0,92313.0,0.216652]
[1732034189573,0.04530373,92330.0,92322.0,0.216632]
[1732034189782,0.04530373,92330.0,92329.0,0.108308]
[1732034189991,0.0007118,92330.0,92329.0,0.11080524]
[1732034190414,0.0007118,92330.0,92329.0,0.19360524]
[1732034191567,0.0007118,92330.0,92329.0,0.48747408]
[1732034191768,0.0007118,92330.0,92329.0,0.48947408]
[1732034191999,0.0007118,92330.0,92329.0,0.61047408]
[1732034192210,0.0007118,92330.0,92329.0,0.62247408]
[1732034192898,0.0007118,92330.0,92329.0,0.24250524]
[1732034193112,0.0007118,92330.0,92329.0,0.11080524]
[1732034193975,0.0007118,92330.0,92329.0,0.00249724]
[1732034194187,0.0007118,92330.0,92322.0,0.216631]
[1732034194403,0.0007118,92330.0,92308.0,0.01]
[1732034194641,0.0007118,92330.0,92323.0,0.00236517]
[1732034194642,0.108308,92329.0,92323.0,0.00236517]
[1732034194845,0.1090188,92330.0,92319.0,0.10832]
[1732034195056,0.0007118,92330.0,92324.0,0.00236458]
[1732034195269,0.0007118,92330.0,92306.0,0.01041689]
[1732034195270,0.216616,92329.0,92314.0,0.216649]
[1732034195493,0.108313,92325.0,92318.0,0.10832]
[1732034195706,0.108317,92322.0,92315.0,0.00237563]
[1732034195923,0.0007118,92330.0,92306.0,0.00041689]
[1732034195924,0.108318,92320.0,92319.0,0.0023734]
[1732034196392,0.108317,92322.0,92309.0,0.216663]
[1732034196610,0.0007118,92330.0,92313.0,0.108326]
[1732034196830,0.108316,92322.0,92314.0,0.108325]
[1732034197035,0.108316,92322.0,92314.0,0.11060372]
[1732034197252,0.0007118,92330.0,92314.0,0.00227872]
[1732034197253,0.216632,92323.0,92314.0,0.00227872]
[1732034197460,0.108324,92315.0,92314.0,0.00227872]
[1732034197701,0.10906255,92329.0,92306.0,0.10875089]
[1732034197934,0.108326,92314.0,92313.0,0.0008559]
[1732034198364,0.10906255,92329.0,92313.0,0.0008559]
[1732034198365,0.216626,92325.0,92313.0,0.0008559]
[1732034198578,0.108325,92314.0,92313.0,0.0008559]
[1732034200826,0.216647,92316.0,92313.0,0.0008559]
[1732034201026,0.108325,92314.0,92313.0,0.0008559]
[1732034201465,0.216647,92316.0,92313.0,0.0008559]
[1732034201693,0.216647,92316.0,92313.0,0.00317846]
[1732034201910,0.108325,92314.0,92313.0,0.0008559]
[1732034202535,0.04477037,92316.0,92313.0,0.0008559]
[1732034202980,0.0759,92328.0,92313.0,0.0008559]
[1732034203187,0.0007118,92330.0,92313.0,0.0008559]
[1732034203188,0.04324006,92322.0,92321.0,0.108317]
[1732034203403,0.0007118,92330.0,92324.0,0.108313]
[1732034203606,0.0007118,92330.0,92319.0,0.216638]
[1732034203607,0.04310814,92328.0,92321.0,0.216635]
[1732034203832,0.0007118,92330.0,92313.0,0.0008559]
[1732034203833,0.0007118,92330.0,92329.0,0.108308]
[1732034204322,0.0479,92344.0,92330.0,0.108306]
[1732034204571,0.0479,92344.0,92325.0,0.216626]
[1732034204572,0.10906255,92341.0,92325.0,0.216626]
[1732034204799,0.216593,92339.0,92316.0,0.002]
[1732034205003,0.10906255,92341.0,92313.0,0.0008559]
[1732034205004,0.108296,92340.0,92334.0,0.108301]
[1732034205210,0.108296,92339.0,92332.0,0.324912]
[1732034205416,0.10906255,92341.0,92333.0,0.00231725]
[1732034205660,0.04445815,92342.0,92333.0,0.00231725]
[1732034205920,0.0477,92356.0,92330.0,0.12590629]
[1732034206132,0.0017112,92362.0,92358.0,0.108274]
[1732034206345,0.0017112,92362.0,92337.0,0.12590629]
[1732034206569,0.04621773,92362.0,92359.0,0.00229981]
[1732034206780,0.0017112,92362.0,92361.0,0.10827]
[1732034207027,0.0017112,92362.0,92361.0,0.11056899]
[1732034211212,0.0017112,92362.0,92361.0,0.22068482]
[1732034211426,0.0017112,92362.0,92361.0,0.30033154]
[1732034211893,0.0017112,92362.0,92361.0,0.29833154]
[1732034212116,0.0017112,92362.0,92361.0,0.21963154]
[1732034213229,0.0017112,92362.0,92361.0,0.11056899]
[1732034215123,0.1099802,92362.0,92361.0,0.00229899]
[1732034215309,0.0017112,92362.0,92361.0,0.00229899]
[1732034215541,0.0017112,92362.0,92359.0,0.108272]
[1732034215766,0.0017112,92362.0,92361.0,0.11050826]
[1732034215961,0.0017112,92362.0,92360.0,0.00223856]
[1732034216210,0.0017112,92362.0,92361.0,0.00223826]
[1732034216653,0.0017112,92362.0,92344.0,0.216581]
[1732034216867,0.0017112,92362.0,92361.0,0.10827]
[1732034217305,0.0017112,92362.0,92361.0,0.11050826]
[1732034218828,0.0017112,92362.0,92357.0,0.21655]
[1732034218829,0.0017112,92362.0,92358.0,0.216548]
[1732034219057,0.0017112,92362.0,92361.0,0.11043123]
[1732034219289,0.0017112,92362.0,92361.0,0.10827]
[1732034219494,0.0492,92384.0,92361.0,0.00216075]
[1732034219730,0.15826255,92384.0,92366.0,0.216527]
[1732034219930,0.10906255,92383.0,92351.0,0.10906255]
[1732034220149,0.10906255,92383.0,92367.0,0.00216529]
[1732034220388,0.108259,92372.0,92343.0,0.002]
[1732034220601,0.10826,92371.0,92368.0,0.0021647]
[1732034220809,0.10906255,92383.0,92344.0,0.32564355]
[1732034220810,0.108262,92369.0,92363.0,0.108267]
[1732034221021,0.10906255,92383.0,92345.0,0.1]
[1732034221232,0.10826,92370.0,92365.0,0.108265]
[1732034221460,0.216508,92376.0,92346.0,0.10906255]
[1732034221461,0.216492,92382.0,92346.0,0.10906255]
[1732034221690,0.0492,92384.0,92374.0,0.108254]
[1732034221915,0.10825,92379.0,92374.0,0.108254]
[1732034222167,0.15826255,92384.0,92354.0,0.10906255]
[1732034222396,0.108249,92379.0,92374.0,0.108254]
[1732034222604,0.216505,92377.0,92368.0,0.108261]
[1732034222821,0.10825,92379.0,92354.0,0.10906255]
[1732034223027,0.108249,92380.0,92356.0,0.10906255]
[1732034223232,0.108247,92381.0,92376.0,0.108253]
[1732034223482,0.216492,92382.0,92374.0,0.108254]
[1732034223686,0.216494,92381.0,92374.0,0.108254]
[1732034223909,0.10825,92379.0,92374.0,0.108254]
[1732034224116,0.216497,92380.0,92363.0,0.216535]
[1732034224326,0.108251,92378.0,92363.0,0.216535]
[1732034224538,0.108254,92375.0,92370.0,0.108259]
[1732034224742,0.37475055,92384.0,92356.0,0.10906255]
[1732034224946,0.37475055,92384.0,92371.0,0.108259]
[1732034225153,0.37475055,92384.0,92356.0,0.10906255]
[1732034225154,0.108253,92376.0,92356.0,0.10906255]
[1732034225361,0.108253,92376.0,92371.0,0.108258]
[1732034225570,0.108253,92376.0,92372.0,0.108257]
[1732034225819,0.37646235,92384.0,92345.0,0.1]
[1732034225820,0.15997435,92384.0,92345.0,0.1]
[1732034226031,0.108258,92372.0,92347.0,0.324861]
[1732034226293,0.32555255,92383.0,92348.0,0.10906255]
[1732034226522,0.108258,92372.0,92367.0,0.108263]
[1732034226730,0.10826,92370.0,92365.0,0.108265]
[1732034226977,0.216518,92371.0,92345.0,0.102]
[1732034227223,0.108266,92365.0,92360.0,0.108271]
[1732034227448,0.23496884,92383.0,92348.0,0.216572]
[1732034227659,0.23496884,92383.0,92359.0,0.108272]
[1732034227660,0.108267,92364.0,92359.0,0.108272]
[1732034227863,0.108265,92366.0,92346.0,0.10906255]
[1732034228071,0.216522,92370.0,92346.0,0.10906255]
[1732034228302,0.216522,92370.0,92361.0,0.10827]
[1732034228603,0.108265,92366.0,92361.0,0.10827]
[1732034228831,0.108265,92366.0,92362.0,0.00215988]
[1732034229062,0.216522,92370.0,92362.0,0.00215988]
[1732034229305,0.108263,92368.0,92363.0,0.108268]
[1732034229558,0.324738,92382.0,92363.0,0.00215959]
[1732034229769,0.108265,92366.0,92363.0,0.00215959]
[1732034230011,0.216497,92380.0,92350.0,0.216567]
[1732034230246,0.216497,92380.0,92185.0,0.5]
[1732034230247,0.108266,92365.0,92364.0,0.00215811]
[1732034230464,0.108266,92365.0,92361.0,0.10827]
[1732034230702,0.108266,92365.0,92364.0,0.00215781]
[1732034230961,0.10906255,92379.0,92361.0,0.10827]
[1732034230962,0.10824,92387.0,92381.0,0.108246]
[1732034231201,0.12761969,92400.0,92378.0,0.108249]
[1732034231202,0.04482414,92381.0,92378.0,0.108249]
[1732034231437,0.1591558,92384.0,92382.0,0.00216018]
[1732034231654,0.1591558,92384.0,92376.0,0.216504]
[1732034231655,0.0509118,92384.0,92377.0,0.108251]
[1732034231927,0.0509118,92384.0,92365.0,0.216532]
[1732034231928,0.1591548,92384.0,92383.0,0.00215989]
[1732034232135,0.1591548,92384.0,92369.0,0.108261]
[1732034232136,0.10825,92379.0,92369.0,0.108261]
[1732034232364,0.0509118,92384.0,92354.0,0.0568]
[1732034232365,0.09443943,92384.0,92354.0,0.1]
[1732034232597,0.21649,92383.0,92370.0,0.00216226]
[1732034232826,0.09443943,92384.0,92375.0,0.108253]
[1732034233092,0.09443943,92384.0,92358.0,0.216548]
[1732034233321,0.09443943,92384.0,92376.0,0.00216196]
[1732034233545,0.108252,92377.0,92372.0,0.108257]
[1732034233786,0.10825,92379.0,92377.0,0.00216167]
[1732034234007,0.216492,92382.0,92364.0,0.216534]
[1732034234008,0.108247,92382.0,92364.0,0.216534]
[1732034234254,0.324735,92383.0,92375.0,0.108253]
[1732034234474,0.00543943,92384.0,92366.0,0.216529]
[1732034234722,0.108245,92383.0,92377.0,0.108251]
[1732034234959,0.216468,92392.0,92384.0,0.108243]
[1732034235195,0.0017132,92412.0,92378.0,0.00216107]
[1732034235196,0.0852134,92404.0,92378.0,0.00216107]
[1732034235402,0.0852134,92404.0,92385.0,0.00216167]
[1732034235633,0.0458681,92400.0,92381.0,0.0793]
[1732034235854,0.0017134,92400.0,92381.0,0.0793]
[1732034236082,0.0017134,92400.0,92382.0,0.00215653]
[1732034236589,0.108238,92389.0,92384.0,0.108243]
[1732034236829,0.10906255,92399.0,92373.0,0.0788]
[1732034237053,0.216454,92398.0,92386.0,0.216483]
[1732034237278,0.216454,92398.0,92374.0,0.0008553]
[1732034237279,0.216457,92397.0,92388.0,0.216477]
[1732034237511,0.0017106,92389.0,92388.0,0.324716]
[1732034241689,0.14955592,92398.0,92385.0,0.216484]
[1732034241908,0.2181634,92400.0,92385.0,0.108241]
[1732034241909,0.108226,92399.0,92385.0,0.108241]
[1732034242169,0.108232,92394.0,92389.0,0.108237]
[1732034242400,0.108233,92393.0,92388.0,0.108238]
[1732034242647,0.10824,92387.0,92382.0,0.108245]
[1732034242864,0.216457,92397.0,92374.0,0.0028553]
[1732034242865,0.216457,92397.0,92385.0,0.108242]
[1732034243092,0.00338026,92394.0,92387.0,0.10824]
[1732034243336,0.108235,92392.0,92375.0,0.324762]
[1732034243566,0.00338026,92396.0,92386.0,0.216482]
[1732034243567,0.108233,92393.0,92386.0,0.216482]
[1732034243791,0.108233,92393.0,92388.0,0.108239]
[1732034244033,0.108231,92395.0,92378.0,0.757753]
[1732034244249,0.04458004,92397.0,92374.0,0.0008553]
[1732034244476,0.216461,92395.0,92389.0,0.108237]
[1732034244710,0.108232,92394.0,92389.0,0.108237]
[1732034244939,0.0017134,92400.0,92397.0,0.108228]
[1732034245204,0.04443946,92398.0,92397.0,0.108227]
[1732034245412,0.0017134,92400.0,92399.0,0.108226]
[1732034245640,0.04624951,92400.0,92399.0,0.108226]
[1732034246126,0.0017134,92400.0,92399.0,0.00212665]
[1732034246340,0.0017134,92400.0,92399.0,0.108226]
[1732034246569,0.0017134,92400.0,92399.0,0.00212665]
[1732034246799,0.1099384,92400.0,92399.0,0.00212665]
[1732034247067,0.0017134,92400.0,92388.0,0.108238]
[1732034247309,0.0017134,92400.0,92378.0,0.216501]
[1732034247525,0.108233,92393.0,92388.0,0.108238]
[1732034247962,0.108233,92393.0,92389.0,0.00212754]
[1732034248435,0.108231,92395.0,92389.0,0.11036454]
[1732034248655,0.108232,92394.0,92389.0,0.11036454]
[1732034249150,0.1291584,92403.0,92390.0,0.216473]
[1732034249395,0.00338003,92402.0,92389.0,0.00212754]
[1732034249631,0.1459,92417.0,92356.0,0.09665959]
[1732034249632,0.216444,92403.0,92391.0,0.00212991]
[1732034249863,0.216435,92407.0,92353.0,0.36154839]
[1732034249864,0.1557408,92404.0,92398.0,0.108226]
[1732034250355,0.0475198,92404.0,92399.0,0.00212783]
[1732034250563,0.1557398,92404.0,92399.0,0.11035283]
[1732034250783,0.1557398,92404.0,92399.0,0.108225]
[1732034250995,0.108222,92403.0,92400.0,0.00212754]
[1732034251418,0.1557408,92404.0,92400.0,0.00212754]
[1732034251676,0.108223,92401.0,92400.0,0.00212754]
[1732034252131,0.108223,92401.0,92396.0,0.108229]
[1732034252358,0.108222,92403.0,92400.0,0.00212665]
[1732034252581,0.216444,92403.0,92372.0,0.01]
[1732034252801,0.216444,92403.0,92396.0,0.108229]
[1732034253031,0.216444,92403.0,92383.0,0.0008554]
[1732034253032,0.0029134,92404.0,92403.0,0.108221]
[1732034253481,0.0029134,92404.0,92403.0,0.11033953]
[1732034253707,0.0029134,92404.0,92403.0,0.21940208]
[1732034254374,0.0017132,92409.0,92403.0,0.11118108]
[1732034254595,0.0017132,92409.0,92408.0,0.108215]
[1732034255029,0.0017132,92409.0,92408.0,0.11032957]
[1732034255277,0.0017132,92409.0,92408.0,0.21939212]
[1732034255992,0.0017132,92409.0,92408.0,0.22139212]
[1732034256212,0.0017132,92409.0,92408.0,0.21939212]
[1732034257358,0.0017132,92409.0,92408.0,0.22139212]
[1732034258076,0.0017132,92409.0,92408.0,0.34969212]
[1732034258748,0.0017132,92409.0,92408.0,0.35769212]
[1732034260317,0.0017132,92409.0,92408.0,1.05769212]
[1732034263726,0.0017132,92409.0,92408.0,1.04969212]
[1732034263939,0.0017132,92409.0,92408.0,1.00219212]
[1732034264156,0.21638,92430.0,92408.0,0.89397712]
[1732034264381,0.108193,92428.0,92420.0,0.002]
[1732034264587,0.216382,92429.0,92420.0,0.002]
[1732034264812,0.108199,92422.0,92421.0,0.00208017]
[1732034265272,0.0832,92430.0,92420.0,0.002]
[1732034265480,0.1082,92421.0,92420.0,0.002]
[1732034265938,0.216391,92425.0,92420.0,0.002]
[1732034266156,0.1082,92421.0,92420.0,0.002]
[1732034266593,0.108207,92416.0,92409.0,0.108213]
[1732034266800,0.216389,92426.0,92420.0,0.0040776]
[1732034267035,0.216389,92426.0,92409.0,0.108213]
[1732034267245,0.216428,92410.0,92398.0,0.002]
[1732034267454,0.108212,92411.0,92410.0,0.00208204]
[1732034267671,0.108224,92401.0,92394.0,0.108231]
[1732034267894,0.432796,92422.0,92389.0,0.216474]
[1732034267895,0.108225,92400.0,92389.0,0.216474]
[1732034268354,0.108225,92400.0,92387.0,0.216478]
[1732034268562,0.0782,92405.0,92392.0,0.216468]
[1732034268769,0.108225,92400.0,92394.0,0.108232]
[1732034269413,0.216443,92403.0,92392.0,0.216468]
[1732034269654,0.108222,92402.0,92394.0,0.108231]
[1732034269869,0.108225,92400.0,92392.0,0.324701]
[1732034270080,0.216443,92403.0,92392.0,0.216468]
[1732034270305,0.108224,92401.0,92394.0,0.108231]
[1732034270534,0.216443,92403.0,92387.0,0.216478]
[1732034270535,0.108225,92400.0,92393.0,0.108232]
[1732034270971,0.108225,92400.0,92394.0,0.108232]
[1732034271190,0.108225,92400.0,92391.0,0.216471]
[1732034271611,0.108225,92400.0,92393.0,0.108232]
[1732034272875,0.108225,92400.0,92394.0,0.108231]
[1732034273293,0.12185442,92405.0,92391.0,0.432942]
[1732034273535,0.21644,92404.0,92395.0,0.10823]
[1732034273760,0.12185442,92405.0,92393.0,0.108232]
[1732034273964,0.108225,92400.0,92393.0,0.108232]
[1732034274402,0.12185442,92405.0,92391.0,0.216471]
[1732034274403,0.108225,92401.0,92394.0,0.108231]
[1732034274622,0.32466,92404.0,92395.0,0.108229]
[1732034274903,0.12185442,92405.0,92394.0,0.108232]
[1732034275144,0.108224,92401.0,92395.0,0.10823]
[1732034275391,0.108222,92403.0,92395.0,0.10823]
[1732034275640,0.33829342,92405.0,92388.0,0.216477]
[1732034275846,0.108221,92403.0,92396.0,0.108229]
[1732034276304,0.108222,92402.0,92396.0,0.108229]
[1732034276798,0.04365442,92405.0,92400.0,0.108224]
[1732034277029,0.04365442,92405.0,92396.0,0.324686]
[1732034277030,0.108221,92404.0,92396.0,0.324686]
[1732034277245,0.108221,92403.0,92396.0,0.108228]
[1732034277481,0.108223,92402.0,92396.0,0.108228]
[1732034277948,0.108225,92400.0,92389.0,0.108237]
[1732034278180,0.108225,92400.0,92384.0,0.216485]
[1732034278181,0.108225,92400.0,92388.0,0.108238]
[1732034278398,0.108225,92400.0,92384.0,0.216485]
[1732034278621,0.108225,92400.0,92387.0,0.216479]
[1732034278843,0.108224,92401.0,92395.0,0.108229]
[1732034279060,0.108225,92400.0,92391.0,0.216471]
[1732034279292,0.21644,92404.0,92393.0,0.108232]
[1732034279521,0.108225,92400.0,92393.0,0.108232]
[1732034279744,0.108225,92400.0,92391.0,0.216471]
[1732034280641,0.108225,92400.0,92394.0,0.108231]
[1732034281084,0.108225,92400.0,92395.0,0.10823]
[1732034281622,0.108225,92400.0,92391.0,0.21647]
[1732034281849,0.108225,92400.0,92395.0,0.002]
[1732034282729,0.108225,92400.0,92390.0,0.216471]
[1732034282939,0.108225,92400.0,92395.0,0.002]
[1732034284143,0.108225,92400.0,92380.0,0.108247]
[1732034284392,0.108225,92400.0,92373.0,0.0833]
[1732034284393,0.21728755,92400.0,92376.0,0.108252]
[1732034284630,0.21728755,92400.0,92380.0,0.108248]
[1732034284631,0.29758755,92400.0,92380.0,0.108248]
[1732034285120,0.29758755,92400.0,92375.0,0.108253]
[1732034285379,0.23414929,92384.0,92364.0,0.108266]
[1732034285608,0.239043,92384.0,92361.0,0.216539]
[1732034285816,0.108243,92384.0,92364.0,0.216533]
[1732034286028,0.108243,92384.0,92373.0,0.108256]
[1732034286243,0.108243,92384.0,92369.0,0.002]
[1732034286478,0.108243,92384.0,92370.0,0.108259]
[1732034286751,0.108243,92384.0,92369.0,0.002]
[1732034286956,0.15261825,92384.0,92372.0,0.108257]
[1732034287183,0.15261825,92384.0,92369.0,0.002]
[1732034287647,0.15261825,92384.0,92359.0,0.216544]
[1732034287862,0.2616808,92384.0,92348.0,0.0459]
[1732034288110,0.2616808,92384.0,92357.0,0.108275]
[1732034288348,0.2616808,92384.0,92352.0,0.21656]
[1732034288782,0.3841808,92384.0,92355.0,0.108277]
[1732034289028,0.3841808,92384.0,92355.0,0.216554]
[1732034289282,0.3841808,92384.0,92357.0,0.108275]
[1732034289514,0.3841808,92384.0,92355.0,0.216554]
[1732034289728,0.3841808,92384.0,92359.0,0.108272]
[1732034289953,0.3841808,92384.0,92342.0,0.0786]
[1732034289954,0.01,92377.0,92342.0,0.0786]
[1732034290208,0.53502284,92375.0,92339.0,0.7]
[1732034290450,0.21655,92358.0,92339.0,0.7]
[1732034290689,0.12590629,92363.0,92332.0,0.0786]
[1732034290690,0.10906255,92357.0,92332.0,0.0786]
[1732034290894,0.10906255,92357.0,92340.0,0.00205469]
[1732034290895,0.108294,92341.0,92340.0,0.00205469]
[1732034291103,0.20800629,92356.0,92330.0,0.0008559]
[1732034291104,0.0489,92355.0,92330.0,0.0008559]
[1732034291330,0.12590629,92349.0,92330.0,0.0008559]
[1732034291536,0.108305,92331.0,92330.0,0.0008559]
[1732034293373,0.21736755,92331.0,92330.0,0.0008559]
[1732034294295,0.10906255,92331.0,92330.0,0.0008559]
[1732034294503,0.21736755,92331.0,92330.0,0.0008559]
[1732034295162,0.26178075,92331.0,92330.0,0.0008559]
[1732034303770,0.19947575,92331.0,92210.0,0.05411165]
[1732034304019,0.12590629,92246.0,92223.0,0.09608554]
[1732034304412,0.0008559,92321.0,92211.0,0.0024]
[1732034304413,0.228445,92212.0,92211.0,0.0004]
[1732034304632,0.01,92195.0,92174.0,0.216979]
[1732034304886,1.56154399,92194.0,92183.0,0.01]
[1732034305128,0.01,92228.0,92183.0,0.01]
[1732034305129,1.55154399,92193.0,92184.0,0.108478]
[1732034305343,1.55154399,92193.0,92184.0,0.12042319]
[1732034305344,1.55154399,92192.0,92184.0,0.12042319]
[1732034305562,1.54808535,92191.0,92184.0,0.12042319]
[1732034305782,0.01,92218.0,92185.0,0.10906255]
[1732034306000,0.01,92218.0,92188.0,0.216947]
[1732034306001,0.108442,92215.0,92188.0,0.216947]
[1732034306214,0.01,92218.0,92189.0,0.10906255]
[1732034306425,0.108443,92215.0,92189.0,0.10906255]
[1732034306677,0.01,92222.0,92198.0,0.216924]
[1732034306927,0.01,92231.0,92199.0,0.10906255]
[1732034307152,0.01,92231.0,92200.0,0.0809]
[1732034307153,0.01,92223.0,92200.0,0.0809]
[1732034307429,1.54833281,92222.0,92208.0,0.023]
[1732034307627,1.54833281,92221.0,92209.0,0.023]
[1732034307851,0.01,92223.0,92209.0,0.131448]
[1732034307852,1.54833281,92220.0,92209.0,0.131448]
[1732034308078,0.84454517,92219.0,92205.0,0.023]
[1732034308282,0.84454517,92218.0,92208.0,0.131449]
[1732034308514,0.33139828,92223.0,92208.0,0.131449]
[1732034308515,0.01,92223.0,92208.0,0.023]
[1732034308744,0.01,92223.0,92208.0,0.108449]
[1732034308745,1.16399025,92222.0,92208.0,0.108449]
[1732034308969,0.28543084,92212.0,92208.0,0.023]
[1732034309204,0.26220395,92211.0,92208.0,0.023]
[1732034309416,0.01,92223.0,92204.0,0.108454]
[1732034309417,0.28543084,92215.0,92204.0,0.108455]
[1732034309634,0.28543084,92215.0,92209.0,0.00167454]
[1732034309849,0.01,92223.0,92202.0,0.10906255]
[1732034310104,0.23777886,92204.0,92202.0,0.10906255]
[1732034310313,0.23769521,92204.0,92203.0,0.11013588]
[1732034310584,0.23769521,92207.0,92204.0,0.216909]
[1732034310817,0.23769521,92206.0,92205.0,0.108453]
[1732034311033,0.23775412,92208.0,92206.0,0.023]
[1732034311270,0.23775412,92208.0,92207.0,0.131451]
[1732034311485,0.23775412,92217.0,92216.0,0.108441]
[1732034311698,0.2376441,92218.0,92208.0,0.023]
[1732034311897,0.2376441,92215.0,92213.0,0.023]
[1732034312159,0.118424,92230.0,92213.0,0.023]
[1732034312160,0.23762572,92214.0,92213.0,0.023]
[1732034312392,0.23750285,92215.0,92213.0,0.023]
[1732034312872,0.23754568,92215.0,92213.0,0.108443]
[1732034313138,0.19012096,92215.0,92214.0,0.131443]
[1732034313359,0.19012096,92217.0,92210.0,0.023]
[1732034313577,0.1425751,92214.0,92213.0,0.108444]
[1732034313803,0.1425751,92215.0,92214.0,0.108443]
[1732034314035,0.09506044,92219.0,92218.0,0.108438]
[1732034314538,0.09503713,92219.0,92218.0,0.108438]
[1732034314756,0.1425751,92224.0,92044.0,0.4]
[1732034314757,0.1425751,92224.0,92215.0,0.216883]
[1732034314987,0.09503199,92228.0,92219.0,0.108436]
[1732034315236,0.09503199,92231.0,92216.0,0.216882]
[1732034315466,0.09503199,92234.0,92227.0,0.023]
[1732034315711,0.25163765,92239.0,92210.0,0.216896]
[1732034315712,0.09503199,92233.0,92225.0,0.023]
[1732034315919,0.19012096,92244.0,92225.0,0.023]
[1732034315920,0.09503199,92231.0,92225.0,0.023]
[1732034316128,0.11906255,92247.0,92225.0,0.023]
[1732034316344,0.10906255,92248.0,92223.0,0.023]
[1732034316566,0.21746555,92248.0,92235.0,0.023]
[1732034316776,0.21746555,92248.0,92237.0,0.023]
[1732034316777,0.10873719,92248.0,92237.0,0.023]
[1732034316997,0.21714119,92248.0,92237.0,0.023]
[1732034317217,0.21714119,92248.0,92236.0,0.023]
[1732034317447,0.108406,92246.0,92236.0,0.023]
[1732034317702,0.10873719,92248.0,92236.0,0.023]
[1732034317932,0.108405,92247.0,92233.0,0.10842]
[1732034318155,0.10873719,92248.0,92235.0,0.023]
[1732034318370,0.01,92250.0,92235.0,0.023]
[1732034318587,0.108404,92248.0,92235.0,0.131418]
[1732034318800,0.108403,92248.0,92237.0,0.023]
[1732034319236,0.108403,92248.0,92239.0,0.023]
[1732034319487,0.118401,92250.0,92239.0,0.023]
[1732034319738,0.118401,92250.0,92237.0,0.216832]
[1732034319739,0.01,92250.0,92242.0,0.023]